fUST/lending_fUST_20250727
["ID","MTS","AMOUNT","RATE_DAILY","PERIOD"]
[375349195,1753630244503,-960.72986292,0.00021176,4]
[375349196,1753630244513,-1216.46630866,0.00021187,2]
[375349197,1753630244523,-472.1,0.00021225,4]
[375349198,1753630244532,-495.21721012,0.0002123,2]
[375349199,1753630244542,-960.72986292,0.00021314,5]
[375349200,1753630244552,-1176.83,0.00021369,2]
[375349201,1753630244562,-460.0,0.00021369,2]
[375349202,1753630244572,-460.0,0.00021369,2]
[375349203,1753630244582,-1072.36,0.00021369,2]
[375349204,1753630244591,-460.0,0.00021369,2]
[375349205,1753630244601,-978.59,0.00021369,2]
[375349206,1753630244613,-2050.99,0.00021369,2]
[375349207,1753630244623,-672.5,0.00021369,2]
[375349208,1753630244632,-460.0,0.00021369,2]
[375349209,1753630244642,-2590.32,0.00021369,2]
[375349210,1753630244651,-549.02,0.00021369,2]
[375349211,1753630244661,-916.27,0.00021369,2]
[375349212,1753630244671,-774.57,0.00021369,2]
[375349213,1753630244680,-460.0,0.00021369,2]
[375349214,1753630244691,-1418.71,0.00021369,2]
[375349215,1753630244700,-463.32,0.00021369,2]
[375349216,1753630244711,-810.81,0.00021369,2]
[375349217,1753630244721,-960.72986292,0.00021452,5]
[375349218,1753630244730,-260.0,0.00021487,2]
[375349219,1753630244740,-500.0,0.00021508,2]
[375349220,1753630244749,-960.72986292,0.0002159,5]
[375349221,1753630244760,-150.0,0.00021606,2]
[375349222,1753630244773,-1176.83,0.00021643,2]
[375349223,1753630244783,-460.0,0.00021643,2]
[375349224,1753630244793,-460.0,0.00021643,2]
[375349225,1753630244803,-1072.36,0.00021643,2]
[375349226,1753630244814,-460.0,0.00021643,2]
[375349227,1753630244824,-978.59,0.00021643,2]
[375349228,1753630244833,-2050.99,0.00021643,2]
[375349229,1753630244843,-672.5,0.00021643,2]
[375349230,1753630244853,-460.0,0.00021643,2]
[375349231,1753630244866,-549.02,0.00021643,2]
[375349232,1753630244876,-2590.32,0.00021643,2]
[375349233,1753630244886,-916.27,0.00021643,2]
[375349234,1753630244896,-774.57,0.00021643,2]
[375349235,1753630244906,-460.0,0.00021643,2]
[375349236,1753630244916,-1418.71,0.00021643,2]
[375349237,1753630244926,-463.32,0.00021643,2]
[375349238,1753630244935,-810.81,0.00021643,2]
[375349239,1753630244945,-472.1,0.00021649,4]
[375349240,1753630244954,-960.72986292,0.00021728,5]
[375349241,1753630244965,-619.0,0.00021822,2]
[375349242,1753630244976,-151.0,0.00021822,2]
[375349243,1753630244986,-151.0,0.00021822,2]
[375349244,1753630244996,-151.56244739,0.00021822,2]
[375349245,1753630245006,-500.0,0.00021822,2]
[375349246,1753630245015,-151.0,0.00021822,2]
[375349247,1753630245025,-151.0,0.00021822,2]
[375349248,1753630245034,-500.0,0.00021822,2]
[375349249,1753630245045,-500.0,0.00021822,2]
[375349250,1753630245055,-561.0,0.00021822,2]
[375349251,1753630245064,-151.0,0.00021822,2]
[375349252,1753630245074,-151.0,0.00021822,2]
[375349253,1753630245083,-151.0,0.00021822,2]
[375349254,1753630245093,-253.52046372,0.00021822,2]
[375349255,1753630245103,-151.0,0.00021822,2]
[375349256,1753630245119,-151.0,0.00021822,2]
[375349257,1753630245129,-151.0,0.00021822,2]
[375349258,1753630245139,-151.0,0.00021822,2]
[375349259,1753630245149,-151.0,0.00021822,2]
[375349260,1753630245159,-151.0,0.00021822,2]
[375349261,1753630245169,-151.0,0.00021822,2]
[375349262,1753630245179,-144.81796862,0.00021866,6]
[375349434,1753630247259,-460.0,0.00019178,2]
[375349436,1753630247269,-460.0,0.00019178,2]
[375349438,1753630247279,-495.4,0.00019452,2]
[375349440,1753630247288,-460.0,0.00019726,2]
[375349442,1753630247298,-460.0,0.0002,2]
[375349444,1753630247307,-460.0,0.00020273,2]
[375349446,1753630247318,-324.43030352,0.00020547,2]
[375349448,1753630247328,-238.33486295,0.00020974,2]
[375349451,1753630247339,-815.9118943,0.00021866,6]
[375349453,1753630247349,-1176.83,0.00021917,2]
[375349455,1753630247359,-500.0,0.00021917,2]
[375349457,1753630247369,-500.0,0.00021917,2]
[375349459,1753630247378,-500.0,0.00021917,2]
[375349461,1753630247388,-500.0,0.00021917,2]
[375349463,1753630247397,-500.0,0.00021917,2]
[375349465,1753630247407,-460.0,0.00021917,2]
[375349467,1753630247417,-460.0,0.00021917,2]
[375349469,1753630247426,-1072.36,0.00021917,2]
[375349471,1753630247436,-460.0,0.00021917,2]
[375349473,1753630247445,-978.59,0.00021917,2]
[375349475,1753630247455,-2050.99,0.00021917,2]
[375349477,1753630247465,-672.5,0.00021917,2]
[375349479,1753630247474,-460.0,0.00021917,2]
[375349481,1753630247484,-549.02,0.00021917,2]
[375349483,1753630247494,-2590.32,0.00021917,2]
[375349485,1753630247504,-916.27,0.00021917,2]
[375349487,1753630247514,-774.57,0.00021917,2]
[375349489,1753630247524,-460.0,0.00021917,2]
[375349491,1753630247533,-1418.71,0.00021917,2]
[375349493,1753630247543,-463.32,0.00021917,2]
[375349495,1753630247553,-810.81,0.00021917,2]
[375349497,1753630247562,-1659.25,0.00022,7]
[375349499,1753630247573,-153.0,0.00022,2]
[375349501,1753630247582,-960.72986292,0.00022003,6]
[375349503,1753630247592,-360.0,0.00022035,2]
[375349505,1753630247602,-153.0,0.00022059,2]
[375349507,1753630247612,-153.0,0.00022059,2]
[375349509,1753630247621,-153.0,0.00022059,2]
[375349511,1753630247631,-153.0,0.00022059,2]
[375349513,1753630247640,-153.0,0.00022059,2]
[375349515,1753630247650,-153.0,0.00022059,2]
[375349517,1753630247661,-153.0,0.00022059,2]
[375349519,1753630247670,-472.1,0.00022073,5]
[375349521,1753630247679,-153.0,0.00022076,2]
[375349523,1753630247689,-619.0,0.00022096,2]
[375349525,1753630247698,-198.0,0.00022096,2]
[375349527,1753630247708,-151.0,0.00022096,2]
[375349529,1753630247717,-500.0,0.00022096,2]
[375349531,1753630247727,-151.0,0.00022096,2]
[375349533,1753630247736,-151.0,0.00022096,2]
[375349535,1753630247745,-500.0,0.00022096,2]
[375349537,1753630247755,-544.10496542,0.00022096,2]
[375349539,1753630247766,-561.0,0.00022096,2]
[375349541,1753630247776,-151.0,0.00022096,2]
[375349543,1753630247786,-151.0,0.00022096,2]
[375349545,1753630247795,-151.0,0.00022096,2]
[375349547,1753630247806,-239.87796106,0.00022096,2]
[375349549,1753630247816,-151.0,0.00022096,2]
[375349551,1753630247825,-151.0,0.00022096,2]
[375349553,1753630247834,-151.0,0.00022096,2]
[375349555,1753630247847,-960.72986292,0.00022141,6]
[375349557,1753630247857,-1176.83,0.00022191,2]
[375349559,1753630247866,-460.0,0.00022191,2]
[375349561,1753630247875,-460.0,0.00022191,2]
[375349563,1753630247885,-1072.36,0.00022191,2]
[375349565,1753630247894,-460.0,0.00022191,2]
[375349567,1753630247904,-978.59,0.00022191,2]
[375349569,1753630247913,-2050.99,0.00022191,2]
[375349571,1753630247925,-672.5,0.00022191,2]
[375349573,1753630247935,-460.0,0.00022191,2]
[375349575,1753630247944,-549.02,0.00022191,2]
[375349576,1753630247954,-2590.32,0.00022191,2]
[375349579,1753630247964,-916.27,0.00022191,2]
[375349580,1753630247974,-774.57,0.00022191,2]
[375349582,1753630247983,-229.57569934,0.00022191,2]
[375349584,1753630247994,-1418.71,0.00022191,2]
[375349586,1753630248003,-463.32,0.00022191,2]
[375349588,1753630248013,-810.81,0.00022191,2]
[375349590,1753630248023,-960.72986292,0.00022279,6]
[375349593,1753630248033,-495.21721012,0.00022287,2]
[375349595,1753630248044,-25000.0,0.0002231,2]
[375349597,1753630248054,-151.0,0.0002231,2]
[375349599,1753630248064,-151.0,0.0002231,2]
[375349601,1753630248074,-3801.642,0.0002231,2]
[375349603,1753630248084,-151.0,0.0002231,2]
[375349605,1753630248094,-500.0,0.0002231,2]
[375349607,1753630248104,-151.0,0.0002231,2]
[375349609,1753630248114,-500.0,0.0002231,2]
[375349611,1753630248124,-5897.99031185,0.0002231,2]
[375349613,1753630248133,-151.0,0.0002231,2]
[375349615,1753630248143,-500.0,0.0002231,2]
[375349617,1753630248153,-151.0,0.0002231,2]
[375349619,1753630248162,-151.0,0.0002231,2]
[375349621,1753630248171,-500.0,0.0002231,2]
[375349623,1753630248181,-151.0,0.0002231,2]
[375349625,1753630248191,-500.0,0.0002231,2]
[375349627,1753630248201,-151.0,0.0002231,2]
[375349629,1753630248211,-151.0,0.0002231,2]
[375349631,1753630248221,-500.0,0.0002231,2]
[375349633,1753630248230,-151.0,0.0002231,2]
[375349635,1753630248240,-500.0,0.0002231,2]
[375349637,1753630248249,-151.0,0.0002231,2]
[375349639,1753630248259,-151.0,0.0002231,2]
[375349641,1753630248269,-500.0,0.0002231,2]
[375349643,1753630248279,-151.0,0.0002231,2]
[375349644,1753630248288,-151.0,0.0002231,2]
[375349647,1753630248297,-151.0,0.0002231,2]
[375349649,1753630248307,-500.0,0.0002231,2]
[375349651,1753630248317,-151.0,0.0002231,2]
[375349653,1753630248327,-151.0,0.0002231,2]
[375349654,1753630248336,-151.0,0.0002231,2]
[375349657,1753630248345,-151.0,0.0002231,2]
[375349658,1753630248354,-500.0,0.0002231,2]
[375349660,1753630248364,-151.0,0.0002231,2]
[375349663,1753630248373,-151.0,0.0002231,2]
[375349665,1753630248383,-151.0,0.0002231,2]
[375349667,1753630248392,-151.0,0.0002231,2]
[375349669,1753630248402,-500.0,0.0002231,2]
[375349670,1753630248412,-151.0,0.0002231,2]
[375349672,1753630248422,-151.0,0.0002231,2]
[375349674,1753630248432,-500.0,0.0002231,2]
[375349676,1753630248441,-151.0,0.0002231,2]
[375349678,1753630248451,-500.0,0.0002231,2]
[375349680,1753630248460,-151.0,0.0002231,2]
[375349682,1753630248470,-151.0,0.0002231,2]
[375349684,1753630248480,-151.0,0.0002231,2]
[375349686,1753630248489,-500.0,0.0002231,2]
[375349688,1753630248499,-151.0,0.0002231,2]
[375349690,1753630248508,-151.0,0.0002231,2]
[375349693,1753630248518,-500.0,0.0002231,2]
[375349694,1753630248529,-151.0,0.0002231,2]
[375349696,1753630248539,-151.0,0.0002231,2]
[375349698,1753630248549,-500.0,0.0002231,2]
[375349700,1753630248559,-151.0,0.0002231,2]
[375349702,1753630248568,-151.0,0.0002231,2]
[375349704,1753630248577,-151.0,0.0002231,2]
[375349706,1753630248587,-151.0,0.0002231,2]
[375349708,1753630248596,-281.68954337,0.0002231,2]
[375349710,1753630248606,-151.0,0.0002231,2]
[375349712,1753630248617,-151.0,0.0002231,2]
[375349714,1753630248626,-151.0,0.0002231,2]
[375349716,1753630248636,-278.72920567,0.0002231,2]
[375349718,1753630248645,-151.0,0.0002231,2]
[375349720,1753630248654,-151.0,0.0002231,2]
[375349722,1753630248663,-151.0,0.0002231,2]
[375349724,1753630248673,-3077.32787383,0.00022365,2]
[375349726,1753630248683,-619.0,0.0002237,2]
[375349728,1753630248692,-151.0,0.0002237,2]
[375349730,1753630248702,-500.0,0.0002237,2]
[375349732,1753630248711,-151.0,0.0002237,2]
[375349734,1753630248720,-151.0,0.0002237,2]
[375349736,1753630248730,-500.0,0.0002237,2]
[375349738,1753630248739,-561.0,0.0002237,2]
[375349740,1753630248748,-151.0,0.0002237,2]
[375349742,1753630248758,-151.0,0.0002237,2]
[375349744,1753630248770,-151.0,0.0002237,2]
[375349746,1753630248780,-151.0,0.0002237,2]
[375349748,1753630248790,-151.0,0.0002237,2]
[375349750,1753630248800,-151.0,0.0002237,2]
[375349752,1753630248810,-500.0,0.00022373,2]
[375349754,1753630248820,-500.0,0.00022373,2]
[375349756,1753630248829,-960.72986292,0.00022417,7]
[375349758,1753630248839,-1176.83,0.00022465,2]
[375349760,1753630248848,-460.0,0.00022465,2]
[375349762,1753630248859,-460.0,0.00022465,2]
[375349764,1753630248868,-1072.36,0.00022465,2]
[375349766,1753630248878,-309.44,0.00022465,2]
[375349768,1753630248887,-978.59,0.00022465,2]
[375349770,1753630248897,-2050.99,0.00022465,2]
[375349772,1753630248907,-672.5,0.00022465,2]
[375349773,1753630248916,-460.0,0.00022465,2]
[375349776,1753630248926,-549.02,0.00022465,2]
[375349778,1753630248935,-2590.32,0.00022465,2]
[375349780,1753630248944,-916.27,0.00022465,2]
[375349782,1753630248954,-774.57,0.00022465,2]
[375349783,1753630248964,-463.32,0.00022465,2]
[375349785,1753630248973,-1418.71,0.00022465,2]
[375349787,1753630248982,-2640.8,0.00022465,2]
[375349789,1753630248992,-810.81,0.00022465,2]
[375349791,1753630249001,-41571.64394356,0.0002249,7]
[375349793,1753630249010,-472.1,0.00022498,5]
[375349795,1753630249020,-1008.19771165,0.000225,2]
[375349797,1753630249030,-150.0,0.00022507,2]
[375349799,1753630249039,-960.72986292,0.00022555,7]
[375349801,1753630249049,-460.0,0.00022583,2]
[375349803,1753630249058,-500.0,0.00022604,2]
[375349806,1753630249068,-619.0,0.00022644,2]
[375349807,1753630249077,-151.0,0.00022644,2]
[375349809,1753630249087,-453.0,0.00022644,2]
[375349812,1753630249096,-151.0,0.00022644,2]
[375349813,1753630249106,-293.72464462,0.00022644,2]
[375349816,1753630249117,-302.02849241,0.00022644,2]
[375349818,1753630249128,-561.0,0.00022644,2]
[375349820,1753630249137,-151.0,0.00022644,2]
[375349822,1753630249147,-245.0,0.00022644,2]
[375349824,1753630249157,-192.67921665,0.00022644,2]
[375349826,1753630249165,-202.42119693,0.00022644,2]
[375349828,1753630249175,-151.0,0.00022644,2]
[375349830,1753630249184,-960.72986292,0.00022693,7]
[375349832,1753630249193,-1176.83,0.00022739,2]
[375349834,1753630249203,-460.0,0.00022739,2]
[375349836,1753630249212,-460.0,0.00022739,2]
[375349838,1753630249222,-1072.36,0.00022739,2]
[375349840,1753630249231,-978.59,0.00022739,2]
[375349842,1753630249242,-2050.99,0.00022739,2]
[375349844,1753630249251,-672.5,0.00022739,2]
[375349846,1753630249260,-460.0,0.00022739,2]
[375349848,1753630249270,-549.02,0.00022739,2]
[375349850,1753630249280,-2590.32,0.00022739,2]
[375349852,1753630249289,-916.27,0.00022739,2]
[375349854,1753630249298,-774.57,0.00022739,2]
[375349856,1753630249307,-463.32,0.00022739,2]
[375349858,1753630249316,-1418.71,0.00022739,2]
[375349860,1753630249326,-810.81,0.00022739,2]
[375349862,1753630249335,-587.0,0.00022776,2]
[375349864,1753630249345,-960.72986292,0.00022831,8]
[375349866,1753630249354,-25000.0,0.00022858,2]
[375349868,1753630249364,-619.0,0.00022918,2]
[375349870,1753630249373,-151.0,0.00022918,2]
[375349872,1753630249382,-151.4272048,0.00022918,2]
[375349874,1753630249391,-561.0,0.00022918,2]
[375349876,1753630249400,-1003.65022164,0.00022921,2]
[375349878,1753630249409,-1000.0,0.00022921,2]
[375349880,1753630249419,-472.1,0.00022922,5]
[375349881,1753630249427,-11245.51412045,0.00022929,2]
[375349883,1753630249436,-960.72986292,0.00022969,8]
[375349885,1753630249446,-429.9863832,0.00022986,2]
[375349888,1753630249455,-429.9863832,0.00022986,2]
[375349890,1753630249465,-857.5671616,0.00022986,2]
[375349892,1753630249474,-429.9863832,0.00022986,2]
[375349893,1753630249483,-429.9863832,0.00022986,2]
[375349896,1753630249493,-429.9863832,0.00022986,2]
[375349897,1753630249503,-429.9863832,0.00022986,2]
[375349900,1753630249512,-838.72,0.00023,2]
[375349902,1753630249521,-160.0,0.00023,2]
[375349903,1753630249531,-1176.83,0.00023013,2]
[375349909,1753630249569,-460.0,0.00023013,2]
[375349911,1753630249578,-1072.36,0.00023013,2]
[375349913,1753630249588,-978.59,0.00023013,2]
[375349915,1753630249597,-2050.99,0.00023013,2]
[375349917,1753630249607,-672.5,0.00023013,2]
[375349919,1753630249617,-460.0,0.00023013,2]
[375349920,1753630249627,-549.02,0.00023013,2]
[375349923,1753630249636,-2590.32,0.00023013,2]
[375349925,1753630249646,-916.27,0.00023013,2]
[375349927,1753630249655,-774.57,0.00023013,2]
[375349929,1753630249665,-463.32,0.00023013,2]
[375349930,1753630249674,-1418.71,0.00023013,2]
[375349933,1753630249684,-810.81,0.00023013,2]
[375349934,1753630249693,-534.82,0.00023058,7]
[375349936,1753630249703,-960.72986292,0.00023107,8]
[375349939,1753630249713,-560.0,0.00023131,2]
[375349940,1753630249722,-534.82,0.00023158,3]
[375349943,1753630249732,-150.0,0.00023173,2]
[375349945,1753630249742,-500.0,0.00023173,2]
[375349946,1753630249751,-619.0,0.00023192,2]
[375349948,1753630249761,-245.0,0.00023192,2]
[375349950,1753630249773,-561.0,0.00023192,2]
[375349952,1753630249783,-151.0,0.00023192,2]
[375349954,1753630249792,-151.0,0.00023192,2]
[375349956,1753630249802,-151.0,0.00023192,2]
[375349959,1753630249811,-329523.38820112,0.000232,3]
[375349961,1753630249821,-160.0,0.000232,3]
[375349962,1753630249830,-312.16666667,0.000232,3]
[375349964,1753630249840,-526.50274803,0.000232,3]
[375349967,1753630249851,-4366.61451062,0.000232,3]
[375349968,1753630249861,-840.75038169,0.000232,3]
[375349970,1753630249871,-216.01841554,0.000232,3]
[375349973,1753630249882,-160.0,0.000232,3]
[375349974,1753630249894,-231.30466539,0.000232,3]
[375349976,1753630249903,-960.72986292,0.00023245,8]
[375349978,1753630249913,-534.82,0.00023258,3]
[375349980,1753630249923,-153.0,0.0002326,2]
[375349983,1753630249934,-400.1109256,0.0002326,2]
[375349984,1753630249944,-153.0,0.0002326,2]
[375349987,1753630249955,-577.9763186,0.0002326,2]
[375349988,1753630249965,-577.9763186,0.0002326,2]
[375349990,1753630249975,-153.0,0.0002326,2]
[375349992,1753630249985,-577.9763186,0.0002326,2]
[375349995,1753630249995,-577.9763186,0.0002326,2]
[375349996,1753630250005,-577.9763186,0.0002326,2]
[375349998,1753630250015,-153.0,0.0002326,2]
[375350000,1753630250025,-577.9763186,0.0002326,2]
[375350002,1753630250034,-1000.0,0.00023285,5]
[375350004,1753630250043,-1176.83,0.00023287,2]
[375350006,1753630250053,-460.0,0.00023287,2]
[375350008,1753630250063,-1072.36,0.00023287,2]
[375350011,1753630250073,-978.59,0.00023287,2]
[375350012,1753630250082,-2050.99,0.00023287,2]
[375350014,1753630250091,-672.5,0.00023287,2]
[375350016,1753630250101,-460.0,0.00023287,2]
[375350018,1753630250110,-2590.32,0.00023287,2]
[375350020,1753630250120,-549.02,0.00023287,2]
[375350023,1753630250130,-916.27,0.00023287,2]
[375350025,1753630250139,-774.57,0.00023287,2]
[375350026,1753630250148,-463.32,0.00023287,2]
[375350028,1753630250158,-1418.71,0.00023287,2]
[375350030,1753630250167,-810.81,0.00023287,2]
[375350032,1753630250178,-1659.25,0.000233,7]
[375350035,1753630250188,-151.0,0.000233,10]
[375350037,1753630250197,-178.3698008,0.00023342,2]
[375350039,1753630250207,-153.0,0.00023342,2]
[375350041,1753630250216,-271.8108596,0.00023342,2]
[375350043,1753630250225,-160.0437776,0.00023342,2]
[375350044,1753630250235,-178.3698008,0.00023342,2]
[375350046,1753630250244,-153.0,0.00023342,2]
[375350048,1753630250254,-178.3698008,0.00023342,2]
[375350051,1753630250264,-160.0437776,0.00023342,2]
[375350053,1753630250273,-178.3698008,0.00023342,2]
[375350054,1753630250283,-153.0,0.00023342,2]
[375350056,1753630250292,-160.0437776,0.00023342,2]
[375350058,1753630250302,-178.3698008,0.00023342,2]
[375350060,1753630250311,-160.0437776,0.00023342,2]
[375350063,1753630250320,-178.3698008,0.00023342,2]
[375350065,1753630250330,-153.0,0.00023342,2]
[375350066,1753630250340,-160.0437776,0.00023342,2]
[375350068,1753630250350,-160.0437776,0.00023342,2]
[375350070,1753630250360,-178.3698008,0.00023342,2]
[375350073,1753630250370,-178.3698008,0.00023342,2]
[375350075,1753630250379,-160.0437776,0.00023342,2]
[375350077,1753630250388,-153.0,0.00023342,2]
[375350079,1753630250397,-160.0437776,0.00023342,2]
[375350081,1753630250407,-178.3698008,0.00023342,2]
[375350082,1753630250416,-159.680395,0.00023342,2]
[375350084,1753630250426,-178.3698008,0.00023342,2]
[375350086,1753630250435,-160.0437776,0.00023342,2]
[375350088,1753630250444,-160.0437776,0.00023342,2]
[375350090,1753630250453,-178.3698008,0.00023342,2]
[375350092,1753630250463,-306.0,0.00023342,2]
[375350094,1753630250472,-160.0437776,0.00023342,2]
[375350096,1753630250481,-178.3698008,0.00023342,2]
[375350098,1753630250490,-178.3698008,0.00023342,2]
[375350100,1753630250499,-160.0437776,0.00023342,2]
[375350102,1753630250508,-160.0437776,0.00023342,2]
[375350104,1753630250517,-178.3698008,0.00023342,2]
[375350106,1753630250527,-317.6781502,0.00023342,2]
[375350108,1753630250536,-178.3698008,0.00023342,2]
[375350110,1753630250546,-178.3698008,0.00023342,2]
[375350112,1753630250556,-178.3698008,0.00023342,2]
[375350113,1753630250565,-174.5132506,0.00023342,2]
[375350114,1753630250574,-495.21721012,0.00023343,2]
[375350115,1753630250583,-472.1,0.00023346,6]
[375350116,1753630250593,-534.82,0.00023358,7]
[375350117,1753630250602,-2158.0,0.00023359,2]
[375350118,1753630250612,-960.72986292,0.00023383,9]
[375350119,1753630250621,-25000.0,0.00023406,2]
[375350120,1753630250630,-534.82389945,0.00023458,6]
[375350121,1753630250640,-619.0,0.00023466,2]
[375350122,1753630250649,-561.0,0.00023466,2]
[375350123,1753630250658,-151.0,0.00023466,2]
[375350124,1753630250668,-151.0,0.00023466,2]
[375350125,1753630250678,-151.0,0.00023466,2]
[375350126,1753630250687,-500.0,0.00023468,2]
[375350127,1753630250697,-960.72986292,0.00023521,9]
[375350128,1753630250706,-212.19,0.00023561,2]
[375350129,1753630250715,-212.19,0.00023561,2]
[375350130,1753630250724,-212.19,0.00023561,2]
[375350131,1753630250734,-212.19,0.00023561,2]
[375350132,1753630250744,-212.19,0.00023561,2]
[375350133,1753630250753,-212.19,0.00023561,2]
[375350134,1753630250766,-212.19,0.00023561,2]
[375350135,1753630250775,-212.19,0.00023561,2]
[375350136,1753630250785,-212.19,0.00023561,2]
[375350137,1753630250794,-212.19,0.00023561,2]
[375350138,1753630250805,-212.19,0.00023561,2]
[375350139,1753630250814,-212.19,0.00023561,2]
[375350140,1753630250823,-212.19,0.00023561,2]
[375350141,1753630250832,-212.19,0.00023561,2]
[375350142,1753630250842,-212.19,0.00023561,2]
[375350143,1753630250853,-212.19,0.00023561,2]
[375350144,1753630250880,-212.19,0.00023561,2]
[375350145,1753630250890,-1176.83,0.00023561,2]
[375350146,1753630250899,-460.0,0.00023561,2]
[375350147,1753630250909,-1072.36,0.00023561,2]
[375350149,1753630250920,-978.59,0.00023561,2]
[375350151,1753630250930,-2050.99,0.00023561,2]
[375350153,1753630250939,-672.5,0.00023561,2]
[375350155,1753630250949,-460.0,0.00023561,2]
[375350156,1753630250959,-2590.32,0.00023561,2]
[375350158,1753630250970,-549.02,0.00023561,2]
[375350161,1753630250980,-916.27,0.00023561,2]
[375350162,1753630250990,-774.57,0.00023561,2]
[375350164,1753630251000,-463.32,0.00023561,2]
[375350167,1753630251009,-1418.71,0.00023561,2]
[375350168,1753630251019,-810.81,0.00023561,2]
[375350170,1753630251029,-151.0,0.000236,6]
[375350172,1753630251039,-3301.33283952,0.00023637,2]
[375350174,1753630251050,-960.72986292,0.00023659,9]
[375350176,1753630251059,-660.0,0.00023679,2]
[375350179,1753630251069,-167.4724735,0.00023699,2]
[375350180,1753630251078,-500.0,0.000237,2]
[375350183,1753630251088,-325.55131923,0.00023721,2]
[375350185,1753630251098,-619.0,0.0002374,2]
[375350187,1753630251108,-561.0,0.0002374,2]
[375350189,1753630251118,-151.0,0.0002374,2]
[375350191,1753630251129,-151.0,0.0002374,2]
[375350193,1753630251138,-472.1,0.0002377,6]
[375350195,1753630251148,-960.72986292,0.00023797,9]
[375350197,1753630251158,-212.19,0.00023835,2]
[375350199,1753630251168,-1176.83,0.00023835,2]
[375350201,1753630251178,-460.0,0.00023835,2]
[375350203,1753630251188,-1072.36,0.00023835,2]
[375350205,1753630251198,-978.59,0.00023835,2]
[375350207,1753630251207,-2050.99,0.00023835,2]
[375350209,1753630251217,-672.5,0.00023835,2]
[375350211,1753630251228,-254.58,0.00023835,2]
[375350213,1753630251238,-549.02,0.00023835,2]
[375350215,1753630251248,-2590.32,0.00023835,2]
[375350217,1753630251258,-916.27,0.00023835,2]
[375350219,1753630251267,-774.57,0.00023835,2]
[375350221,1753630251276,-463.32,0.00023835,2]
[375350223,1753630251285,-1418.71,0.00023835,2]
[375350225,1753630251295,-810.81,0.00023835,2]
[375350227,1753630251305,-429.9863832,0.0002389,2]
[375350229,1753630251314,-151.0,0.000239,5]
[375350231,1753630251323,-3301.33283952,0.00023902,2]
[375350233,1753630251332,-151.65,0.00023909,2]
[375350235,1753630251343,-960.72986292,0.00023934,10]
[375350237,1753630251354,-429.9863832,0.00023945,2]
[375350239,1753630251365,-429.9863832,0.00023945,2]
[375350241,1753630251375,-25000.0,0.00023954,2]
[375350243,1753630251384,-969.0,0.0002397,2]
[375350245,1753630251394,-421.487,0.0002397,2]
[375350247,1753630251403,-155.26545874,0.00024,2]
[375350249,1753630251412,-167.4724735,0.00024,2]
[375350251,1753630251423,-619.0,0.00024014,2]
[375350253,1753630251432,-561.0,0.00024014,2]
[375350255,1753630251442,-151.0,0.00024014,2]
[375350257,1753630251451,-296.51129216,0.00024014,2]
[375350259,1753630251460,-500.0,0.00024031,2]
[375350261,1753630251470,-500.0,0.00024061,2]
[375350263,1753630251480,-500.0,0.00024062,2]